bitfinex-derivatives/quotes_ETHF0:USTF0_20251107
["timestamp","ask_amount","ask_price","bid_price","bid_amount"]
[1762475276498,0.49166,3296.8,3296.6,3.2078]
[1762475277003,0.00255367,3296.9,3296.4,3.32914]
[1762475277206,0.49166,3296.8,3296.7,0.49166]
[1762475277593,0.4917,3296.5,3296.4,3.82086]
[1762475277799,0.49172,3296.5,3296.4,0.49171]
[1762475279004,0.49174,3296.3,3296.2,0.49174]
[1762475279207,0.00255367,3296.9,3295.9,3.2078]
[1762475279400,0.49178,3296.1,3296.0,0.49177]
[1762475279595,0.49178,3296.0,3295.9,3.2078]
[1762475279803,0.264,3295.9,3295.8,0.4918]
[1762475280195,0.49182,3295.7,3295.6,0.49576359]
[1762475280408,0.49179,3296.0,3295.6,0.00393359]
[1762475280607,3.2078,3296.2,3295.6,0.00393359]
[1762475280608,0.75576,3296.1,3296.0,0.49177]
[1762475281209,0.49176,3296.1,3296.0,0.49177]
[1762475282107,3.2078,3296.2,3295.6,0.12529359]
[1762475282301,0.49181,3295.8,3295.7,0.49182]
[1762475282602,3.2078,3296.2,3295.6,0.12529359]
[1762475282805,0.49181,3295.8,3295.7,0.49181]
[1762475283105,0.264,3295.7,3295.6,0.49577359]
[1762475283300,0.75579,3295.9,3295.8,0.49181]
[1762475283607,0.75582,3295.8,3295.7,0.49182]
[1762475284909,0.74372,3295.7,3295.6,0.00393359]
[1762475285410,0.12138,3296.0,3295.6,0.00393359]
[1762475285612,0.49179,3295.9,3295.7,0.49182]
[1762475285905,0.2519,3296.0,3295.6,0.00393359]
[1762475286107,0.2519,3296.0,3295.8,0.4918]
[1762475286309,0.2519,3295.9,3295.8,0.4918]
[1762475286804,0.49182,3295.7,3295.6,0.00393359]
[1762475287008,0.74372,3295.7,3295.6,0.00393359]
[1762475287813,0.8651,3295.7,3295.6,0.00393359]
[1762475288306,0.37328,3295.7,3295.6,0.00393359]
[1762475288511,0.60331,3295.8,3295.7,0.49182]
[1762475288811,0.74372,3295.7,3295.6,0.00393359]
[1762475289806,0.8651,3295.7,3295.6,0.00393359]
[1762475290511,0.8651,3295.7,3295.6,0.49577359]
[1762475290911,0.8651,3295.7,3295.6,0.00393359]
[1762475291112,0.2519,3295.7,3295.6,0.49577359]
[1762475291307,0.1115,3295.8,3295.7,0.49182]
[1762475291510,0.3634,3295.8,3295.7,0.49182]
[1762475291812,0.12136,3296.0,3295.9,0.49179]
[1762475292017,0.74372,3295.7,3295.6,0.00393359]
[1762475292313,3.95152,3295.7,3295.6,0.00393359]
[1762475292508,4.0729,3295.7,3295.6,0.00393359]
[1762475294211,0.12138,3296.1,3295.6,0.00393359]
[1762475294411,0.49178,3296.0,3295.9,0.49178]
[1762475294816,0.49181,3295.8,3295.7,0.12136]
[1762475295119,0.74372,3295.7,3295.6,0.00393359]
[1762475296810,0.8651,3295.7,3295.6,0.00393359]
[1762475297217,0.74372,3295.7,3295.6,0.00393359]
[1762475297610,1.65888093,3295.7,3295.6,0.00393359]
[1762475298016,1.65888093,3295.7,3294.5,0.49199]
[1762475298017,0.492,3294.6,3294.5,0.49199]
[1762475298214,0.49197,3294.7,3294.6,0.49198]
[1762475298411,0.74387,3294.7,3294.6,0.49198]
[1762475298611,0.00455201,3294.9,3294.8,0.49195]
[1762475298819,0.00455201,3294.9,3294.8,0.73015]
[1762475299020,0.00455201,3294.9,3294.8,0.73354358]
[1762475299414,0.00455201,3294.9,3294.8,0.85494358]
[1762475299615,0.00455201,3294.9,3294.8,0.36299358]
[1762475299824,0.00455201,3294.9,3294.8,0.12479358]
[1762475300122,0.74839201,3294.9,3294.8,0.00339358]
[1762475300713,0.86979201,3294.9,3294.8,0.00339358]
[1762475304025,0.74387,3294.7,3294.6,0.49197]
[1762475304221,0.74396,3294.1,3294.0,3.2078]
[1762475305229,0.25570896,3294.1,3294.0,3.70303404]
[1762475306030,3.95556896,3294.1,3294.0,0.00316404]
[1762475307120,3.95556896,3294.1,3293.2,3.2078]
[1762475307121,3.58494896,3294.1,3293.2,3.2078]
[1762475307327,0.49215,3293.5,3293.4,0.49216]
[1762475307916,0.12146,3293.9,3293.8,0.4921]
[1762475308118,0.49211,3293.8,3293.6,0.49213]
[1762475308425,0.74399,3293.9,3293.8,0.4921]
[1762475308818,0.27544,3294.0,3293.6,0.49536789]
[1762475309020,0.49212,3293.8,3293.6,0.49536789]
[1762475309229,0.2519,3293.7,3293.6,0.49536789]
[1762475309525,0.52734,3294.0,3293.9,0.49209]
[1762475310128,0.2519,3293.9,3293.8,0.4921]
[1762475311123,3.33304896,3294.1,3293.6,0.00324789]
[1762475311328,0.00380896,3294.1,3294.0,0.88457]
[1762475311520,0.12599201,3294.9,3294.8,0.49196]
[1762475311720,0.4059,3296.0,3295.9,0.49179]
[1762475311920,0.2519,3295.9,3295.8,0.4918]
[1762475312121,0.2519,3295.6,3295.0,0.1543]
[1762475312322,3.4597,3295.6,3295.0,0.1543]
[1762475312523,0.2519,3295.6,3295.4,0.49186]
[1762475312829,0.00358222,3295.6,3295.4,0.49186]
[1762475313226,0.00358222,3295.6,3295.5,0.2382]
[1762475313528,0.25548222,3295.6,3295.2,3.21235201]
[1762475313724,0.2519,3295.3,3295.2,3.21235201]
[1762475313924,0.12496222,3295.6,3295.4,0.49185]
[1762475314341,0.00358222,3295.6,3295.4,0.49185]
[1762475314824,0.00358222,3295.6,3295.5,0.2382]
[1762475315023,0.00358222,3295.6,3295.4,0.61323]
[1762475315024,0.49542222,3295.6,3295.4,0.61323]
[1762475315530,0.00358222,3295.6,3295.5,0.2295]
[1762475316025,0.00358222,3295.6,3295.5,0.48988]
[1762475316429,0.00455201,3295.8,3295.7,0.2295]
[1762475316625,10.9985,3296.5,3296.3,0.49173]
[1762475316826,10.9985,3296.5,3296.4,0.49172]
[1762475317227,3.2078,3296.5,3296.4,0.49172]
[1762475317428,0.00283247,3296.5,3296.4,0.72516028]
[1762475317634,3.2078,3297.4,3297.3,0.49158]
[1762475317832,0.00455201,3297.7,3297.0,0.14885201]
[1762475318026,0.23745201,3297.7,3297.6,0.49154]
[1762475318327,0.72897201,3297.7,3297.6,0.49154]
[1762475318524,0.12585201,3297.7,3297.4,0.49156]
[1762475318727,0.12818927,3297.7,3297.1,0.1213]
[1762475318926,0.49154,3297.6,3297.1,0.1213]
[1762475319122,0.49154,3297.6,3297.5,0.49155]
[1762475319321,0.12818927,3297.7,3297.1,0.1213]
[1762475319322,0.49156,3297.5,3297.1,0.1213]
[1762475319522,0.12818927,3297.7,3297.2,0.49158]
[1762475319523,0.49157,3297.4,3297.2,0.49158]
[1762475319728,0.4916,3297.2,3297.1,0.1213]
[1762475319930,0.72451,3297.1,3297.0,0.00455201]
[1762475320339,0.84583001,3297.1,3297.0,0.00455201]
[1762475321934,0.7246,3296.5,3296.4,0.00394028]
[1762475322133,0.7246,3296.5,3296.4,0.49566028]
[1762475322439,0.0936,3297.0,3296.5,0.4917]
[1762475322736,0.0936,3297.0,3296.4,0.12528028]
[1762475322928,3.2078,3296.6,3296.4,0.00849229]
[1762475323135,0.4917,3296.5,3296.4,0.00849229]
[1762475323332,0.7246,3296.5,3296.4,0.00849229]
[1762475323642,0.84594,3296.5,3296.4,0.00849229]
[1762475323935,0.7246,3296.5,3296.4,0.00849229]
[1762475324338,0.84594,3296.5,3296.4,0.00849229]
[1762475324530,0.72469,3295.9,3295.8,3.2078]
[1762475324835,0.1377,3295.8,3294.6,3.3521]
[1762475325131,0.49187,3295.4,3295.1,3.69971]
[1762475325332,3.3455,3295.8,3295.1,3.69971]
[1762475325533,3.47143201,3295.8,3295.1,3.70348376]
[1762475325729,0.72479,3295.2,3295.1,0.00377376]
[1762475325936,0.86565314,3295.2,3295.1,0.00377376]
[1762475326435,0.98705314,3295.2,3295.1,0.00377376]
[1762475326834,0.72487,3294.7,3294.6,3.2078]
[1762475327636,0.1214,3295.0,3294.9,0.49194]
[1762475327835,0.00316314,3295.2,3295.1,0.72991]
[1762475328235,0.49505314,3295.2,3295.1,0.49191]
[1762475328442,0.00316314,3295.2,3295.1,0.72991]
[1762475328846,0.00316314,3295.2,3295.1,0.85131]
[1762475329443,0.49192,3295.0,3294.9,0.00281792]
[1762475329750,0.00316314,3295.2,3295.1,0.49191]
[1762475330249,0.00316314,3295.2,3295.1,0.72991]
[1762475330541,0.00316314,3295.2,3295.1,0.238]
[1762475330849,0.49505314,3295.2,3295.1,0.72991]
[1762475331050,0.49191,3295.1,3295.0,0.1214]
[1762475331248,0.49191,3295.1,3295.0,0.61332]
[1762475331444,0.49192,3295.0,3294.9,0.00281792]
[1762475331846,0.49191,3295.1,3295.0,0.49192]
[1762475332448,0.00316314,3295.2,3295.0,0.49192]
[1762475332847,0.49191,3295.1,3295.0,0.49192]
[1762475334047,0.49191,3295.1,3294.9,0.00281792]
[1762475334048,0.72482,3295.0,3294.9,0.00281792]
[1762475335049,4.05402,3295.0,3294.9,0.00281792]
[1762475335945,0.49202,3294.4,3294.3,0.49202]
[1762475336150,3.69982,3294.4,3294.3,0.49202]
[1762475336352,0.49205,3294.3,3294.2,0.49204]
[1762475336546,0.12142,3294.7,3294.5,0.492]
[1762475336752,3.2078,3294.9,3294.8,0.49195]
[1762475337054,0.49194,3294.9,3294.8,0.73301323]
[1762475337253,0.00316314,3295.2,3295.0,0.49191]
[1762475337254,0.49193,3295.1,3295.0,0.49191]
[1762475337455,0.00316314,3295.2,3295.1,0.72991]
[1762475337856,0.49192,3295.0,3294.8,0.00306323]
[1762475338055,0.49194,3294.9,3294.8,0.00306323]
[1762475338657,0.72484,3294.9,3294.8,0.00306323]
[1762475338955,0.49194,3294.9,3294.8,0.00306323]
[1762475340052,0.49192,3295.1,3294.8,0.00306323]
[1762475340252,0.49193,3295.0,3294.9,0.49194]
[1762475341350,0.72484,3294.9,3294.8,0.00306323]
[1762475341546,0.72484,3294.9,3294.8,0.49501323]
[1762475341858,3.34866314,3295.2,3295.0,0.49191]
[1762475341859,0.49192,3295.1,3295.0,0.49191]
[1762475342054,0.49194,3295.0,3294.9,0.49194]
[1762475342258,0.49194,3294.9,3294.8,0.00306323]
[1762475342463,0.49194,3294.9,3294.8,0.49501323]
[1762475342860,0.49192,3295.0,3294.9,0.49193]
[1762475343160,3.34866314,3295.2,3295.0,0.49192]
[1762475343650,0.49194,3294.9,3294.8,0.49501323]
[1762475344157,0.72484,3294.9,3294.8,0.00306323]
[1762475344460,0.2329,3294.9,3294.8,0.00306323]
[1762475345258,0.72484,3294.9,3294.8,0.00306323]
[1762475346257,0.72484,3294.9,3293.8,3.2078]
[1762475346258,0.49209,3294.0,3293.8,3.2078]
[1762475346560,0.49201,3294.5,3294.3,0.49203]
[1762475346763,0.49206,3294.1,3294.0,0.88516]
[1762475347061,3.32922,3294.6,3294.0,0.1454]
[1762475347261,0.49202,3294.4,3294.3,0.49202]
[1762475347563,0.49204,3294.2,3294.1,0.49205]
[1762475347761,3.32922,3294.6,3294.0,0.14769264]
[1762475347961,0.74211,3294.5,3294.4,0.492]
[1762475348552,0.49206,3294.1,3294.0,0.00229264]
[1762475348966,0.492,3294.5,3294.4,0.49201]
[1762475349160,0.00316314,3295.2,3295.1,0.2477]
[1762475349463,0.00316314,3295.2,3295.1,0.73961]
[1762475349654,0.00316314,3295.2,3295.0,0.1449]
[1762475349655,0.00316314,3295.2,3295.0,0.49192]
[1762475349855,0.12456314,3295.2,3294.5,0.1027]
[1762475350058,0.00316314,3295.2,3295.1,0.73961]
[1762475350559,0.00455201,3295.8,3295.7,0.73952]
[1762475350955,2.01e-06,3295.8,3295.7,0.73952]
[1762475351262,3.2078,3296.6,3296.5,0.4917]
[1762475351461,3.3465,3297.0,3296.9,0.49164]
[1762475351762,3.59973235,3297.0,3296.9,0.00342625]
[1762475352065,3.72105236,3297.0,3296.9,0.00342625]
[1762475353362,3.21093235,3297.0,3296.9,0.00342625]
[1762475353658,0.00313235,3297.0,3296.9,0.00342625]
[1762475353864,0.00313235,3297.0,3296.9,0.25112625]
[1762475354462,0.00313235,3297.0,3296.9,0.00342625]
[1762475358269,0.00313235,3297.0,3296.9,0.49506625]
[1762475359266,0.25323235,3297.0,3296.9,0.49506625]
[1762475359963,0.51325236,3297.0,3296.9,0.49506625]
[1762475360469,4.30825236,3297.0,3296.9,0.49506625]
[1762475361670,0.51325236,3297.0,3296.9,0.49506625]
[1762475361858,0.00313235,3297.0,3296.9,0.74276625]
[1762475362061,0.00455201,3297.3,3297.2,0.4916]
[1762475362371,0.37142001,3298.3,3298.2,0.49145]
[1762475362569,3.4579,3298.8,3298.7,0.49137]
[1762475363264,0.2526669,3298.8,3298.7,0.49137]
[1762475363570,0.0025669,3298.8,3298.7,0.49137]
[1762475364168,0.0025669,3298.8,3298.7,0.73907]
[1762475364673,0.0025669,3298.8,3298.7,0.86032999]
[1762475364865,0.00455201,3299.1,3299.0,0.73903]
[1762475365063,0.00455201,3299.1,3299.0,3.94683]
[1762475366071,0.00819644,3299.1,3299.0,3.94683]
[1762475367368,0.00819644,3299.1,3299.0,0.73903]
[1762475367675,0.00819644,3299.1,3299.0,3.94683]
[1762475367970,3.5966,3300.0,3299.9,0.49119]
[1762475368274,0.2501,3299.9,3298.9,3.2078]
[1762475368467,0.2501,3299.8,3299.7,0.49122]
[1762475368863,0.3888,3299.4,3299.0,0.12122]
[1762475369069,0.00285987,3299.8,3299.3,3.2078]
[1762475369265,0.49406987,3299.8,3299.6,0.49124]
[1762475369470,0.2501,3299.7,3299.6,0.49124]
[1762475369665,0.37132,3299.7,3299.6,0.49124]
[1762475369868,3.78422,3299.7,3299.6,0.49124]
[1762475370468,4.03432,3299.7,3299.6,0.49124]
[1762475370979,7.06011,3299.7,3299.6,0.73894]
[1762475371172,0.00285987,3299.8,3299.7,0.73892]
[1762475371478,0.2501,3301.5,3301.4,0.49096]
[1762475372079,0.37126,3301.5,3301.4,0.49096]
[1762475372379,0.12116,3301.5,3301.4,0.49096]
[1762475372579,0.63416482,3301.8,3301.4,0.00246457]
[1762475372878,0.12116,3301.7,3301.5,0.49095]
[1762475373382,0.00671257,3301.8,3301.7,0.73863]
[1762475373572,3.3465,3303.0,3302.7,0.49077]
[1762475374080,0.12110001,3302.9,3302.7,0.49077]
[1762475374471,3.83724,3303.0,3302.7,0.49077]
[1762475374769,3.34927432,3303.0,3302.8,0.49076]
[1762475374976,3.21057432,3303.0,3302.8,0.49076]
[1762475375480,3.21057432,3303.0,3302.2,3.2078]
[1762475375481,0.2637,3302.7,3302.2,3.69865]
[1762475375680,0.2637,3302.7,3302.5,0.4908]
[1762475375982,0.2637,3302.3,3301.6,3.2078]
[1762475376176,0.49092,3301.8,3301.6,3.2078]
[1762475376373,3.86012,3301.8,3301.4,0.00246457]
[1762475376677,0.49093,3301.7,3301.4,0.00246457]
[1762475376877,0.49094,3301.6,3301.4,0.00246457]
[1762475377381,0.38486,3301.5,3301.4,0.00246457]
[1762475377583,0.12116,3301.5,3301.4,0.00246457]
[1762475377772,0.38086,3301.5,3301.4,0.00246457]
[1762475379084,0.4176,3301.2,3300.6,3.2078]
[1762475379275,0.75077,3300.7,3300.6,3.2078]
[1762475379579,0.2597,3300.7,3300.6,3.2078]
[1762475379979,0.2597,3300.7,3300.6,0.00260065]
[1762475380177,0.12118,3300.8,3300.7,0.49107]
[1762475380777,0.61224,3300.8,3300.6,0.00260065]
[1762475381474,0.00454482,3301.0,3300.8,0.49106]
[1762475381679,9.287,3300.9,3300.8,0.49106]
[1762475382079,0.00454482,3301.0,3300.9,0.256]
[1762475382485,0.12118,3301.9,3301.8,0.49091]
[1762475382688,3.07518,3301.9,3301.8,0.49091]
[1762475383689,0.49095,3301.6,3301.5,0.49094]
[1762475384877,0.2597,3301.4,3300.6,3.36930065]
[1762475385083,0.49101,3301.2,3301.0,0.49102]
[1762475385384,0.12118,3301.5,3300.7,0.12118]
[1762475385582,0.49098,3301.4,3301.1,0.491]
[1762475385890,0.12118,3301.5,3301.0,0.49102]
[1762475386082,0.491,3301.3,3301.1,0.49101]
[1762475386584,0.12118,3301.5,3300.9,0.12116]
[1762475386784,0.491,3301.3,3301.2,0.49099]
[1762475387291,0.12118,3301.5,3300.6,3.36930065]
[1762475387484,0.49102,3301.1,3301.0,0.49102]
[1762475387681,0.61215,3301.5,3300.7,0.12118]
[1762475387881,0.49099,3301.3,3301.2,0.49099]
[1762475388276,0.12116,3301.4,3301.3,0.74699]
[1762475388483,6.17891,3301.8,3301.7,0.49092]
[1762475388684,5.688,3301.8,3301.7,0.49092]
[1762475388978,3.69868,3302.0,3301.9,0.4909]
[1762475389484,3.2078,3302.0,3301.9,0.7469]
[1762475389691,3.69868,3302.0,3301.9,0.7469]
[1762475389987,0.00454482,3302.2,3302.1,0.49087]
[1762475390381,0.78627503,3302.2,3302.1,0.49087]
[1762475390690,0.00454482,3302.2,3302.1,0.49087]
[1762475391489,0.78753984,3302.2,3302.1,0.49087]
[1762475391685,0.49539482,3302.2,3302.1,0.49087]
[1762475392388,1.2793331,3302.2,3302.1,0.49087]
[1762475392788,0.49088,3302.1,3302.0,0.49088]
[1762475392987,1.27481828,3302.1,3302.0,0.49088]
[1762475393183,0.78393828,3302.1,3302.0,0.49088]
[1762475395086,0.78393828,3302.1,3302.0,3.95468]
[1762475395385,1.07524318,3303.1,3302.9,0.49075]
[1762475395687,8.87595516,3303.0,3302.9,0.49075]
[1762475395888,0.3457,3302.5,3301.8,3.2078]
[1762475396084,10.06618084,3302.4,3301.8,3.2078]
[1762475396283,0.78518084,3302.3,3301.8,3.2078]
[1762475396484,0.2597,3302.0,3301.9,3.32894]
[1762475396685,1.53576084,3302.0,3301.9,3.81984]
[1762475397087,1.53576084,3302.0,3301.9,3.6987]
[1762475397487,0.78518084,3302.0,3301.9,3.6987]
[1762475397683,0.78518084,3302.0,3301.9,3.9547]
[1762475397885,0.78518084,3302.0,3301.9,0.7469]
[1762475398095,0.78518084,3302.0,3301.9,0.4909]
[1762475398287,0.4909,3301.9,3301.8,0.61205]
[1762475398592,1.27608084,3301.9,3301.8,0.12114]
[1762475398895,0.78518084,3301.9,3301.7,0.00454482]
[1762475399090,10.06418084,3301.8,3301.7,0.49547482]
[1762475399393,11.404231,3301.8,3301.7,0.00454482]
[1762475399596,10.06418084,3301.8,3301.7,0.49547482]
[1762475400088,14.18049084,3301.8,3301.7,0.00454482]
[1762475400295,0.2597,3301.2,3300.9,0.12114]
[1762475400492,0.2597,3300.7,3300.6,0.00260065]
[1762475400692,0.78518084,3300.7,3300.6,0.25860065]
[1762475400988,0.78518084,3300.7,3300.6,3.46640065]
[1762475401292,0.78518084,3300.7,3300.6,0.37978065]
[1762475401693,0.78518084,3300.7,3300.6,3.58758065]
[1762475402606,0.78518084,3300.7,3300.6,3.74648065]
[1762475402898,0.2597,3300.7,3300.6,0.12378065]
[1762475403189,0.2597,3300.4,3300.3,0.00454482]
[1762475403387,0.49111,3300.5,3300.3,0.00454482]
[1762475403582,0.2597,3300.4,3300.3,0.00454482]
[1762475404290,0.26230382,3300.4,3300.3,0.0079466]
[1762475404691,9.54030382,3300.4,3300.3,0.0079466]
[1762475404899,0.38350382,3300.4,3300.3,0.0079466]
[1762475405091,9.66150382,3300.4,3300.3,0.0079466]
[1762475405288,10.15262382,3300.4,3300.3,0.0079466]
[1762475405486,0.87462382,3300.4,3300.3,0.0079466]
[1762475405693,10.15262382,3300.4,3300.3,0.0079466]
[1762475406293,0.4142,3300.0,3299.8,3.2078]
[1762475406496,0.49124,3299.6,3299.4,3.2078]
[1762475406696,0.1494,3300.0,3299.9,0.49119]
[1762475407287,0.1494,3300.0,3299.9,0.49471309]
[1762475407494,0.64058,3300.0,3299.9,0.00352309]
[1762475407695,0.90538,3300.0,3299.9,0.00352309]
[1762475407894,0.90538,3300.0,3299.9,0.49471309]
[1762475407895,0.1494,3300.0,3299.9,0.49471309]
[1762475408603,0.12382382,3300.4,3300.3,0.49113]
[1762475408896,0.00260382,3300.4,3300.3,0.49113]
[1762475409393,0.00260382,3300.4,3300.3,0.61233]
[1762475409595,0.00260382,3300.4,3300.3,0.49113]
[1762475409795,0.00260382,3300.4,3300.3,0.61233]
[1762475409992,0.49372382,3300.4,3300.3,0.1212]
[1762475410199,0.00260382,3300.4,3300.3,0.1212]
[1762475410897,0.00260382,3300.4,3300.3,0.61233]
[1762475411102,0.00260382,3300.4,3300.3,0.65523]
[1762475411599,0.00260382,3300.4,3300.3,8.65523]
[1762475412702,0.00454482,3300.7,3300.6,0.53399]
[1762475412902,0.00454482,3300.7,3300.6,3.74179]
[1762475413296,0.00454482,3300.7,3300.6,3.86297]
[1762475413498,0.26934482,3300.7,3300.6,3.32898]
[1762475413801,0.26934482,3300.7,3299.9,0.00352309]
[1762475413802,0.75593,3300.3,3300.2,3.69895]
[1762475414100,0.2648,3300.3,3300.2,3.2078]
[1762475414298,9.5496,3300.6,3300.3,0.49112]
[1762475414490,9.5496,3300.6,3300.4,0.49111]
[1762475414690,9.5496,3300.6,3299.9,0.12470309]
[1762475414890,0.49116,3300.2,3300.0,0.49117]
[1762475415095,0.49116,3300.2,3300.1,0.49116]
[1762475415297,9.5496,3300.6,3299.9,3.33250309]
[1762475415596,0.49111,3300.5,3300.4,0.49111]
[1762475415797,0.75594,3300.3,3300.2,0.49114]
[1762475416102,0.2648,3300.3,3300.2,0.49114]
[1762475416502,0.75594,3300.3,3300.2,0.49114]
[1762475416702,0.1494,3300.6,3300.5,0.49111]
[1762475416904,9.5486,3300.6,3300.5,0.49111]
[1762475417501,0.1494,3300.6,3300.5,0.49111]
[1762475418602,0.00842912,3300.7,3300.6,0.53399]
[1762475418797,0.00842912,3300.7,3300.6,0.49109]
[1762475418993,0.6405,3300.6,3300.4,3.69891]
[1762475419194,0.1494,3300.6,3300.5,0.4911]
[1762475419601,0.1494,3300.6,3300.5,3.6989]
[1762475420101,0.2648,3300.4,3300.3,0.61233]
[1762475420315,0.2648,3300.4,3300.3,0.49113]
[1762475420605,0.49112,3300.4,3299.9,0.12472309]
[1762475420805,0.49112,3300.4,3300.0,3.2078]
[1762475421606,0.49112,3300.4,3300.3,0.49113]
[1762475422000,0.49112,3300.4,3299.9,0.12472309]
[1762475422001,0.1212,3300.5,3300.4,0.49112]
[1762475422601,0.1212,3300.5,3300.1,3.2078]
[1762475422806,0.49115,3300.3,3300.0,0.1212]
[1762475423007,0.1212,3300.5,3300.0,0.1212]
[1762475423211,0.87712,3300.5,3300.4,0.49112]
[1762475423403,0.75595,3300.3,3300.2,0.49115]
[1762475423603,0.2648,3300.2,3300.1,3.69897]
[1762475423804,0.2648,3300.2,3300.0,0.1212]
[1762475423805,0.49127,3299.4,3299.0,0.1468]
[1762475424011,3.69911,3299.1,3299.0,0.1468]
[1762475424212,12.97611,3299.1,3299.0,0.1468]
[1762475424711,13.09735,3299.1,3299.0,0.1468]
[1762475424909,13.09735,3299.1,3299.0,0.14985249]
[1762475425612,12.88779398,3299.1,3297.6,0.12125999]
[1762475425811,3.2078,3298.3,3298.2,0.52645]
[1762475426008,3.2078,3298.3,3298.2,0.2747]
[1762475426210,3.2078,3298.7,3298.5,0.7311]
[1762475426507,3.21078762,3298.7,3298.6,0.2397]
[1762475426713,2.41468762,3298.7,3298.6,0.2397]
[1762475426914,2.41468762,3298.7,3298.6,0.36095999]
[1762475427709,0.00298762,3298.7,3298.6,0.36095999]
[1762475429010,0.00298762,3298.7,3298.6,0.2397]
[1762475429918,0.00298762,3298.7,3298.6,0.36095999]
[1762475430817,3.2078,3299.2,3299.1,0.2397]
[1762475431017,3.69904,3299.6,3299.5,0.49126]
[1762475431327,3.2078,3299.6,3299.5,0.49126]
[1762475431714,3.21072815,3299.6,3299.5,0.73096]
[1762475432116,2.815e-05,3299.6,3299.5,0.73096]
[1762475432316,2.815e-05,3299.6,3299.5,0.85218]
[1762475433120,0.49126,3299.5,3299.4,0.1468]
[1762475433518,3.20782815,3299.6,3299.5,0.49126]
[1762475433725,3.69906815,3299.6,3299.4,0.63807]
[1762475434218,3.20782815,3299.6,3299.5,0.49125]
[1762475434423,3.20782815,3299.6,3299.4,0.1468]
[1762475434922,3.69906815,3299.6,3299.4,0.63807]
[1762475435124,0.49125,3299.5,3299.4,0.63807]
[1762475435828,3.20782815,3299.6,3299.5,0.49125]
[1762475436030,3.69906815,3299.6,3299.5,0.49125]
[1762475436732,0.49125,3299.5,3299.4,0.1468]
[1762475437133,0.49127,3299.4,3299.3,0.49127]
[1762475437530,3.20782815,3299.6,3298.8,0.26803999]
[1762475437733,0.49127,3299.5,3299.3,0.49127]
[1762475437935,0.49127,3299.4,3299.3,0.49127]
[1762475438340,0.49129,3299.3,3298.9,3.2078]
[1762475438537,0.6744,3299.2,3299.1,0.49131]
[1762475438729,3.3909,3299.2,3299.1,0.49131]
[1762475438925,3.8822,3299.2,3299.1,0.49131]
[1762475439139,4.00344,3299.2,3299.1,0.49131]
[1762475439437,3.82031815,3299.6,3299.4,0.49126]
[1762475439636,3.32906815,3299.6,3298.8,0.1468]
[1762475439836,0.4913,3299.3,3299.2,0.49129]
[1762475440038,0.1831,3299.5,3298.8,0.1468]
[1762475440237,3.32906815,3299.6,3299.5,0.171]
[1762475440431,3.20782815,3299.6,3299.5,0.96265]
[1762475441338,2.815e-05,3299.6,3299.5,3.99127]
[1762475441533,2.815e-05,3299.6,3299.5,11.99127]
[1762475443139,2.815e-05,3299.6,3299.5,3.87005]
[1762475443831,2.815e-05,3299.6,3299.5,3.3788]
[1762475444031,2.815e-05,3299.6,3299.5,3.87006]
[1762475445542,2.815e-05,3299.6,3299.5,3.99128]
[1762475445837,3.2078,3300.1,3300.0,0.3004]
[1762475446143,3.2078,3300.5,3300.4,0.79152]
[1762475446436,3.2078,3300.5,3300.4,0.49112]
[1762475447136,3.70130454,3300.5,3300.4,0.49112]
[1762475447340,0.49115,3300.2,3300.1,0.00454482]
[1762475447936,0.1212,3300.4,3300.3,0.49114]
[1762475448744,0.61232,3300.4,3300.3,0.49114]
[1762475449138,0.1212,3300.4,3300.3,0.49114]
[1762475449543,3.21019454,3300.5,3300.4,0.49112]
[1762475449841,3.21019454,3300.5,3300.4,0.79152]
[1762475450042,0.00239454,3300.5,3300.4,0.79152]
[1762475451644,0.00454482,3300.8,3300.7,0.79148]
[1762475452235,0.00454482,3300.8,3300.7,0.3004]
[1762475452439,0.00454482,3300.8,3300.3,3.329]
[1762475452440,0.1855,3300.7,3300.3,3.2078]
[1762475452745,0.00782183,3300.8,3300.1,0.00454482]
[1762475453041,0.49115,3300.2,3300.1,0.00454482]
[1762475453243,3.2078,3300.5,3299.4,0.171]
[1762475453440,3.2078,3299.7,3299.6,0.3004]
[1762475453641,3.2078,3299.7,3299.4,0.171]
[1762475454241,3.2078,3299.7,3299.6,0.49124]
[1762475454846,3.35714159,3299.7,3299.6,0.49124]
[1762475455242,0.49125,3299.6,3299.4,0.66227]
[1762475455448,3.2078,3299.7,3299.4,0.171]
[1762475455649,0.64058159,3299.6,3299.4,0.66226]
[1762475455848,0.82608159,3299.6,3299.5,0.49125]
[1762475456050,0.67674,3299.6,3299.5,0.49125]
[1762475456248,0.1855,3299.6,3299.5,0.49125]
[1762475456550,0.33484159,3299.6,3299.5,0.49125]
[1762475457043,0.14934159,3299.6,3299.4,0.171]
[1762475457248,3.32902,3299.7,3299.6,0.79164]
[1762475457446,3.2078,3299.7,3299.6,0.3004]
[1762475457644,3.2078,3299.7,3299.4,0.171]
[1762475458154,0.14934159,3299.6,3299.2,0.49583482]
[1762475458444,0.27058159,3299.6,3299.2,0.49583482]
[1762475458650,3.2078,3299.7,3299.2,0.49583482]
[1762475458845,0.12124,3299.5,3299.4,0.49127]
[1762475459041,3.2078,3299.7,3299.3,0.49128]
[1762475459245,0.61251,3299.5,3299.4,0.49126]
[1762475459444,0.49127,3299.5,3299.4,0.49126]
[1762475459644,0.67678,3299.3,3299.2,0.00454482]
[1762475459846,3.88458,3299.3,3299.2,0.00454482]
[1762475460047,4.15516159,3299.3,3299.2,0.00454482]
[1762475460245,0.49139,3298.6,3298.5,0.00278266]
[1762475460451,0.49139,3298.6,3296.4,0.171]
[1762475460452,0.1855,3298.1,3297.7,2.675582]
[1762475460648,0.1855,3297.8,3297.0,2.846582]
[1762475460848,3.2078,3297.6,3297.0,0.171]
[1762475461057,0.49161,3297.2,3297.0,0.171]
[1762475461553,3.21040945,3297.2,3297.0,0.66642777]
[1762475461848,0.14934159,3297.1,3297.0,0.96682777]
[1762475462453,0.14934159,3297.1,3297.0,0.66642777]